[Event "Titled Tuesday Blitz January 25 2022"]
[White "Samadov, Read"]
[Black "Agasarov, Benik"]
[WhiteFideId "13417444"]
[BlackFideId "13314823"]
[WhiteElo "2084"]
[BlackElo "2590"]
[Result "1-0"]
[Round "06"]
[TimeControl "180+1"]
[Date "2022.01.26"]
[WhiteClock "0:00:38"]
[BlackClock "0:00:44"]

1. d4 {[%clk 0:03:00]}  Nf6 {[%clk 0:02:59]} 2. c4 {[%clk 0:03:01]}  g6 {[%clk 0:02:58]} 3. Nc3 {[%clk 0:02:59]}  d5 {[%clk 0:02:57]} 4. cxd5 {[%clk 0:03:00]}  Nxd5 {[%clk 0:02:58]} 5. e4 {[%clk 0:03:00]}  Nxc3 {[%clk 0:02:58]} 6. bxc3 {[%clk 0:03:01]}  Bg7 {[%clk 0:02:58]} 7. Bc4 {[%clk 0:03:01]}  c5 {[%clk 0:02:57]} 8. Ne2 {[%clk 0:03:02]}  O-O {[%clk 0:02:58]} 9. Be3 {[%clk 0:03:02]}  Nc6 {[%clk 0:02:57]} 10. O-O {[%clk 0:03:03]}  Bg4 {[%clk 0:02:57]} 11. f3 {[%clk 0:03:02]}  cxd4 {[%clk 0:02:57]} 12. cxd4 {[%clk 0:03:02]}  Na5 {[%clk 0:02:58]} 13. Bd3 {[%clk 0:03:03]}  Be6 {[%clk 0:02:57]} 14. d5 {[%clk 0:03:02]}  Bxa1 {[%clk 0:02:57]} 15. Qxa1 {[%clk 0:03:03]}  f6 {[%clk 0:02:56]} 16. Qb1 {[%clk 0:03:03]}  Bf7 {[%clk 0:02:51]} 17. Qb4 {[%clk 0:03:02]}  b6 {[%clk 0:02:51]} 18. Nd4 {[%clk 0:03:01]}  Rc8 {[%clk 0:02:48]} 19. f4 {[%clk 0:02:55]}  Qd6 {[%clk 0:02:28]} 20. Qxd6 {[%clk 0:02:44]}  exd6 {[%clk 0:02:27]} 21. Nb5 {[%clk 0:02:43]}  Rfd8 {[%clk 0:02:23]} 22. Bd4 {[%clk 0:02:39]}  Rd7 {[%clk 0:02:17]} 23. Bxf6 {[%clk 0:02:36]}  a6 {[%clk 0:02:11]} 24. Nd4 {[%clk 0:02:33]}  b5 {[%clk 0:02:10]} 25. Be2 {[%clk 0:02:11]}  Nc4 {[%clk 0:02:06]} 26. Bg4 {[%clk 0:02:07]}  Rdc7 {[%clk 0:02:00]} 27. Bxc8 {[%clk 0:02:06]}  Rxc8 {[%clk 0:02:01]} 28. Nc6 {[%clk 0:01:59]}  Rc7 {[%clk 0:01:55]} 29. e5 {[%clk 0:01:32]}  Bxd5 {[%clk 0:01:44]} 30. Ne7+ {[%clk 0:01:28]}  Rxe7 {[%clk 0:01:42]} 31. Bxe7 {[%clk 0:01:29]}  dxe5 {[%clk 0:01:42]} 32. fxe5 {[%clk 0:01:26]}  Nxe5 {[%clk 0:01:41]} 33. a3 {[%clk 0:01:17]}  Nc4 {[%clk 0:01:38]} 34. Rf8+ {[%clk 0:01:15]}  Kg7 {[%clk 0:01:38]} 35. Rd8 {[%clk 0:01:15]}  Bc6 {[%clk 0:01:36]} 36. Rc8 {[%clk 0:01:14]}  Be4 {[%clk 0:01:32]} 37. Rc7 {[%clk 0:01:11]}  Kf7 {[%clk 0:01:29]} 38. Bb4+ {[%clk 0:01:09]}  Kg8 {[%clk 0:01:27]} 39. Ra7 {[%clk 0:01:09]}  a5 {[%clk 0:01:25]} 40. Bxa5 {[%clk 0:01:06]}  Nxa3 {[%clk 0:01:23]} 41. Bc3 {[%clk 0:01:07]}  Nc2 {[%clk 0:01:15]} 42. Rg7+ {[%clk 0:01:06]}  Kf8 {[%clk 0:01:15]} 43. Rxh7 {[%clk 0:01:05]}  b4 {[%clk 0:01:15]} 44. Bb2 {[%clk 0:01:05]}  b3 {[%clk 0:01:14]} 45. Rh3 {[%clk 0:01:03]}  Bd5 {[%clk 0:01:06]} 46. Kf2 {[%clk 0:01:02]}  Nb4 {[%clk 0:01:03]} 47. Ba3 {[%clk 0:01:02]}  Kg8 {[%clk 0:00:59]} 48. Rc3 {[%clk 0:00:47]}  Nc2 {[%clk 0:00:54]} 49. Bb2 {[%clk 0:00:45]}  Kf7 {[%clk 0:00:53]} 50. h4 {[%clk 0:00:45]}  Ke6 {[%clk 0:00:50]} 51. g4 {[%clk 0:00:44]}  Nb4 {[%clk 0:00:50]} 52. Ke3 {[%clk 0:00:43]}  Bh1 {[%clk 0:00:44]} 53. Rxb3 {[%clk 0:00:40]}  Nd5+ {[%clk 0:00:45]} 54. Kf2 {[%clk 0:00:39]}  Nf6 {[%clk 0:00:44]} 55. Rb6+ {[%clk 0:00:38]} 1-0


[Site "https://www.chess.com"]

[Event "Titled Tuesday Blitz January 25 2022"]
[White "Sanal, Vahap"]
[Black "Jones, Gawain C B"]
[WhiteFideId "6300545"]
[BlackFideId "409561"]
[WhiteElo "2603"]
[BlackElo "2657"]
[Result "1-0"]
[Round "06"]
[TimeControl "180+1"]
[Date "2022.01.26"]
[WhiteClock "0:00:05"]
[BlackClock "0:00:06"]

1. Nf3 {[%clk 0:03:00]}  g6 {[%clk 0:02:59]} 2. e4 {[%clk 0:02:59]}  c5 {[%clk 0:02:59]} 3. d4 {[%clk 0:02:53]}  cxd4 {[%clk 0:02:59]} 4. Nxd4 {[%clk 0:02:54]}  Nf6 {[%clk 0:02:59]} 5. Nc3 {[%clk 0:02:52]}  d6 {[%clk 0:03:00]} 6. Be3 {[%clk 0:02:46]}  Bg7 {[%clk 0:03:00]} 7. f3 {[%clk 0:02:47]}  Nc6 {[%clk 0:03:01]} 8. Qd2 {[%clk 0:02:47]}  O-O {[%clk 0:03:01]} 9. O-O-O {[%clk 0:02:47]}  d5 {[%clk 0:03:01]} 10. exd5 {[%clk 0:02:46]}  Nxd5 {[%clk 0:03:01]} 11. Nxc6 {[%clk 0:02:47]}  bxc6 {[%clk 0:03:02]} 12. Bd4 {[%clk 0:02:47]}  Nxc3 {[%clk 0:03:01]} 13. Qxc3 {[%clk 0:02:35]}  Bh6+ {[%clk 0:03:01]} 14. Be3 {[%clk 0:02:30]}  Bxe3+ {[%clk 0:03:01]} 15. Qxe3 {[%clk 0:02:31]}  Qb6 {[%clk 0:03:02]} 16. Qc3 {[%clk 0:02:26]}  Be6 {[%clk 0:02:58]} 17. a3 {[%clk 0:02:19]}  Rad8 {[%clk 0:02:58]} 18. Bd3 {[%clk 0:02:15]}  Rd5 {[%clk 0:02:51]} 19. Be4 {[%clk 0:01:53]}  Rc5 {[%clk 0:02:39]} 20. Qd4 {[%clk 0:01:51]}  h5 {[%clk 0:02:13]} 21. h4 {[%clk 0:01:46]}  Bd5 {[%clk 0:01:59]} 22. b4 {[%clk 0:01:35]}  Rc4 {[%clk 0:01:43]} 23. Qxb6 {[%clk 0:01:35]}  axb6 {[%clk 0:01:44]} 24. Bxd5 {[%clk 0:01:32]}  cxd5 {[%clk 0:01:45]} 25. Rxd5 {[%clk 0:01:32]}  Rfc8 {[%clk 0:01:43]} 26. Rd2 {[%clk 0:01:32]}  Kg7 {[%clk 0:01:40]} 27. Kb2 {[%clk 0:01:32]}  Kf6 {[%clk 0:01:40]} 28. g3 {[%clk 0:01:28]}  Rc3 {[%clk 0:01:38]} 29. Rf1 {[%clk 0:01:27]}  Kf5 {[%clk 0:01:31]} 30. Rff2 {[%clk 0:01:26]}  R3c6 {[%clk 0:01:13]} 31. Rd5+ {[%clk 0:01:23]}  Kf6 {[%clk 0:01:14]} 32. g4 {[%clk 0:01:18]}  e6 {[%clk 0:01:12]} 33. Rb5 {[%clk 0:01:16]}  hxg4 {[%clk 0:01:06]} 34. fxg4+ {[%clk 0:01:16]}  Kg7 {[%clk 0:01:07]} 35. g5 {[%clk 0:01:10]}  Rh8 {[%clk 0:01:05]} 36. Rf4 {[%clk 0:01:04]}  Rhc8 {[%clk 0:01:04]} 37. Rf2 {[%clk 0:01:04]}  Rh8 {[%clk 0:01:02]} 38. Rh2 {[%clk 0:00:55]}  f5 {[%clk 0:00:41]} 39. gxf6+ {[%clk 0:00:54]}  Kxf6 {[%clk 0:00:41]} 40. Rf2+ {[%clk 0:00:54]}  Ke7 {[%clk 0:00:38]} 41. Rg5 {[%clk 0:00:50]}  Rxh4 {[%clk 0:00:38]} 42. Rxg6 {[%clk 0:00:50]}  Rh3 {[%clk 0:00:37]} 43. Rg7+ {[%clk 0:00:48]}  Kd6 {[%clk 0:00:36]} 44. Rd2+ {[%clk 0:00:49]}  Ke5 {[%clk 0:00:36]} 45. Re2+ {[%clk 0:00:41]}  Kf6 {[%clk 0:00:30]} 46. Rg8 {[%clk 0:00:35]}  Kf7 {[%clk 0:00:24]} 47. Rg1 {[%clk 0:00:28]}  Ke7 {[%clk 0:00:21]} 48. Rg4 {[%clk 0:00:22]}  Kf6 {[%clk 0:00:18]} 49. a4 {[%clk 0:00:23]}  Rd6 {[%clk 0:00:17]} 50. Rf4+ {[%clk 0:00:23]}  Ke7 {[%clk 0:00:17]} 51. Rg2 {[%clk 0:00:22]}  Rc6 {[%clk 0:00:15]} 52. b5 {[%clk 0:00:17]}  Rc8 {[%clk 0:00:14]} 53. Rfg4 {[%clk 0:00:15]}  Rhc3 {[%clk 0:00:12]} 54. Rg7+ {[%clk 0:00:14]}  Kf6 {[%clk 0:00:12]} 55. Rb7 {[%clk 0:00:13]}  R3c4 {[%clk 0:00:12]} 56. Rf2+ {[%clk 0:00:13]}  Ke5 {[%clk 0:00:12]} 57. Rxb6 {[%clk 0:00:12]}  Rxa4 {[%clk 0:00:13]} 58. Re2+ {[%clk 0:00:13]}  Kd5 {[%clk 0:00:13]} 59. Kb3 {[%clk 0:00:04]}  Rcc4 {[%clk 0:00:12]} 60. c3 {[%clk 0:00:03]}  Kc5 {[%clk 0:00:05]} 61. Rexe6 {[%clk 0:00:03]}  Rh4 {[%clk 0:00:04]} 62. Rec6+ {[%clk 0:00:02]}  Kd5 {[%clk 0:00:05]} 63. Rb8 {[%clk 0:00:02]}  Ra1 {[%clk 0:00:05]} 64. Rd8+ {[%clk 0:00:02]}  Ke5 {[%clk 0:00:05]} 65. Re8+ {[%clk 0:00:03]}  Kf5 {[%clk 0:00:04]} 66. Rc5+ {[%clk 0:00:02]}  Kf6 {[%clk 0:00:04]} 67. Re2 {[%clk 0:00:03]}  Rb1+ {[%clk 0:00:04]} 68. Rb2 {[%clk 0:00:03]}  Ra1 {[%clk 0:00:04]} 69. b6 {[%clk 0:00:04]}  Ra6 {[%clk 0:00:04]} 70. Rb5 {[%clk 0:00:04]}  Ra8 {[%clk 0:00:04]} 71. b7 {[%clk 0:00:04]}  Rb8 {[%clk 0:00:05]} 72. Rd2 {[%clk 0:00:03]}  Rh7 {[%clk 0:00:05]} 73. Rd6+ {[%clk 0:00:03]}  Ke7 {[%clk 0:00:05]} 74. Rdd5 {[%clk 0:00:03]}  Ke6 {[%clk 0:00:05]} 75. Re5+ {[%clk 0:00:03]}  Kd6 {[%clk 0:00:05]} 76. Red5+ {[%clk 0:00:03]}  Kc6 {[%clk 0:00:06]} 77. Rdc5+ {[%clk 0:00:04]}  Kd6 {[%clk 0:00:06]} 78. Kb4 {[%clk 0:00:03]}  Rhxb7 {[%clk 0:00:06]} 79. c4 {[%clk 0:00:03]}  Rxb5+ {[%clk 0:00:05]} 80. cxb5 {[%clk 0:00:03]}  Rh8 {[%clk 0:00:04]} 81. Rc1 {[%clk 0:00:04]}  Rh4+ {[%clk 0:00:04]} 82. Ka5 {[%clk 0:00:04]}  Rh2 {[%clk 0:00:03]} 83. Kb6 {[%clk 0:00:05]}  Rb2 {[%clk 0:00:04]} 84. Rd1+ {[%clk 0:00:05]}  Ke7 {[%clk 0:00:04]} 85. Kc6 {[%clk 0:00:05]}  Rc2+ {[%clk 0:00:04]} 86. Kb7 {[%clk 0:00:06]}  Rb2 {[%clk 0:00:05]} 87. b6 {[%clk 0:00:06]}  Ke6 {[%clk 0:00:06]} 88. Kc7 {[%clk 0:00:07]}  Rc2+ {[%clk 0:00:06]} 89. Kb8 {[%clk 0:00:07]}  Rb2 {[%clk 0:00:07]} 90. b7 {[%clk 0:00:08]}  Ke7 {[%clk 0:00:07]} 91. Rd4 {[%clk 0:00:07]}  Ke6 {[%clk 0:00:05]} 92. Kc7 {[%clk 0:00:06]}  Ke5 {[%clk 0:00:05]} 93. Rd8 {[%clk 0:00:05]}  Rc2+ {[%clk 0:00:06]} 94. Kd7 {[%clk 0:00:05]}  Rd2+ {[%clk 0:00:06]} 95. Ke7 {[%clk 0:00:05]} 1-0


[Site "https://www.chess.com"]

[Event "Titled Tuesday Blitz January 25 2022"]
[White "Santos Flores, Alberto"]
[Black "Williams, Simon K"]
[WhiteFideId "3601234"]
[BlackFideId "404454"]
[WhiteElo "2293"]
[BlackElo "2468"]
[Result "0-1"]
[Round "06"]
[TimeControl "180+1"]
[Date "2022.01.26"]
[WhiteClock "0:00:01"]
[BlackClock "0:00:13"]

1. e4 {[%clk 0:03:00]}  c5 {[%clk 0:02:57]} 2. Nf3 {[%clk 0:03:00]}  d6 {[%clk 0:02:57]} 3. Bb5+ {[%clk 0:02:55]}  Nc6 {[%clk 0:02:55]} 4. Bxc6+ {[%clk 0:02:53]}  bxc6 {[%clk 0:02:55]} 5. O-O {[%clk 0:02:53]}  Bg4 {[%clk 0:02:55]} 6. d3 {[%clk 0:02:51]}  e6 {[%clk 0:02:48]} 7. Nbd2 {[%clk 0:02:47]}  Nf6 {[%clk 0:02:46]} 8. Re1 {[%clk 0:02:44]}  Nd7 {[%clk 0:02:40]} 9. c3 {[%clk 0:02:16]}  Be7 {[%clk 0:02:25]} 10. Qc2 {[%clk 0:01:50]}  O-O {[%clk 0:02:22]} 11. h3 {[%clk 0:01:49]}  Bh5 {[%clk 0:02:21]} 12. Nh2 {[%clk 0:01:44]}  d5 {[%clk 0:02:16]} 13. f4 {[%clk 0:01:40]}  Bg6 {[%clk 0:02:04]} 14. Nhf3 {[%clk 0:01:36]}  a5 {[%clk 0:01:13]} 15. Qd1 {[%clk 0:01:29]}  Bd6 {[%clk 0:01:05]} 16. Nf1 {[%clk 0:01:23]}  c4 {[%clk 0:00:54]} 17. e5 {[%clk 0:01:16]}  Bc7 {[%clk 0:00:47]} 18. dxc4 {[%clk 0:01:06]}  dxc4 {[%clk 0:00:47]} 19. Ne3 {[%clk 0:00:57]}  Bd3 {[%clk 0:00:43]} 20. b3 {[%clk 0:00:41]}  Nc5 {[%clk 0:00:40]} 21. Ba3 {[%clk 0:00:38]}  Bb6 {[%clk 0:00:36]} 22. Nd4 {[%clk 0:00:37]}  Qc7 {[%clk 0:00:25]} 23. Bxc5 {[%clk 0:00:33]}  Bxc5 {[%clk 0:00:24]} 24. Nxc4 {[%clk 0:00:33]}  Bxc4 {[%clk 0:00:23]} 25. bxc4 {[%clk 0:00:33]}  Rad8 {[%clk 0:00:24]} 26. Qd3 {[%clk 0:00:23]}  Rd7 {[%clk 0:00:24]} 27. Rad1 {[%clk 0:00:19]}  Rfd8 {[%clk 0:00:24]} 28. Qe4 {[%clk 0:00:14]}  Ba7 {[%clk 0:00:20]} 29. Kh2 {[%clk 0:00:12]}  c5 {[%clk 0:00:19]} 30. Nb5 {[%clk 0:00:08]}  Qb8 {[%clk 0:00:18]} 31. Rxd7 {[%clk 0:00:08]}  Rxd7 {[%clk 0:00:18]} 32. Qe2 {[%clk 0:00:06]}  Bb6 {[%clk 0:00:17]} 33. Rd1 {[%clk 0:00:06]}  Qd8 {[%clk 0:00:17]} 34. Rxd7 {[%clk 0:00:06]}  Qxd7 {[%clk 0:00:18]} 35. Qe4 {[%clk 0:00:05]}  g6 {[%clk 0:00:17]} 36. Qa8+ {[%clk 0:00:05]}  Kg7 {[%clk 0:00:17]} 37. Qb8 {[%clk 0:00:06]}  Bd8 {[%clk 0:00:15]} 38. Nd6 {[%clk 0:00:03]}  Be7 {[%clk 0:00:14]} 39. Ne8+ {[%clk 0:00:02]}  Kh6 {[%clk 0:00:15]} 40. Nc7 {[%clk 0:00:01]}  Kg7 {[%clk 0:00:14]} 41. Ne8+ {[%clk 0:00:01]}  Kh6 {[%clk 0:00:14]} 42. Nc7 {[%clk 0:00:02]}  g5 {[%clk 0:00:15]} 43. fxg5+ {[%clk 0:00:01]}  Bxg5 {[%clk 0:00:14]} 44. Qf8+ {[%clk 0:00:01]}  Kh5 {[%clk 0:00:13]} 45. Nb5 {[%clk 0:00:02]}  Bf4+ {[%clk 0:00:13]} 46. Kg1 {[%clk 0:00:01]}  Bxe5 {[%clk 0:00:14]} 47. Kf2 {[%clk 0:00:01]}  Qd2+ {[%clk 0:00:13]} 48. Kf3 {[%clk 0:00:02]}  Qd3+ {[%clk 0:00:13]} 49. Kf2 {[%clk 0:00:01]}  Bg3+ {[%clk 0:00:13]} 0-1


[Site "https://www.chess.com"]

[Event "Titled Tuesday Blitz January 25 2022"]
[White "Stribuk, Artiom"]
[Black "Siva Mahadevan"]
[WhiteFideId "13515659"]
[BlackFideId "25043153"]
[WhiteElo "2224"]
[BlackElo "2203"]
[Result "0-1"]
[Round "06"]
[TimeControl "180+1"]
[Date "2022.01.26"]
[WhiteClock "0:00:06"]
[BlackClock "0:01:09"]

1. d4 {[%clk 0:02:59]}  Nf6 {[%clk 0:02:59]} 2. c4 {[%clk 0:02:58]}  g6 {[%clk 0:02:59]} 3. Nc3 {[%clk 0:02:58]}  Bg7 {[%clk 0:03:00]} 4. e4 {[%clk 0:02:58]}  O-O {[%clk 0:03:01]} 5. Bg5 {[%clk 0:02:58]}  d6 {[%clk 0:03:01]} 6. h3 {[%clk 0:02:58]}  Na6 {[%clk 0:03:00]} 7. Bd3 {[%clk 0:02:57]}  e5 {[%clk 0:02:58]} 8. Nf3 {[%clk 0:02:57]}  c6 {[%clk 0:02:51]} 9. O-O {[%clk 0:02:56]}  Qa5 {[%clk 0:02:47]} 10. a3 {[%clk 0:02:29]}  exd4 {[%clk 0:02:33]} 11. b4 {[%clk 0:02:29]}  Qb6 {[%clk 0:02:33]} 12. Na4 {[%clk 0:02:28]}  Qd8 {[%clk 0:02:26]} 13. Nxd4 {[%clk 0:02:26]}  h6 {[%clk 0:02:26]} 14. Be3 {[%clk 0:02:25]}  Nc7 {[%clk 0:02:26]} 15. Nc3 {[%clk 0:02:23]}  a5 {[%clk 0:02:24]} 16. Qd2 {[%clk 0:02:22]}  Kh7 {[%clk 0:02:21]} 17. Bc2 {[%clk 0:02:00]}  axb4 {[%clk 0:02:03]} 18. axb4 {[%clk 0:02:00]}  Rxa1 {[%clk 0:02:04]} 19. Rxa1 {[%clk 0:02:01]}  Ne6 {[%clk 0:01:57]} 20. Ra8 {[%clk 0:01:47]}  Nxd4 {[%clk 0:01:56]} 21. Bxd4 {[%clk 0:01:47]}  Qe7 {[%clk 0:01:56]} 22. c5 {[%clk 0:01:07]}  Rd8 {[%clk 0:01:51]} 23. Qe3 {[%clk 0:01:01]}  dxc5 {[%clk 0:01:50]} 24. Bxc5 {[%clk 0:01:00]}  Qe6 {[%clk 0:01:51]} 25. Ne2 {[%clk 0:00:56]}  Nd7 {[%clk 0:01:48]} 26. Bb3 {[%clk 0:00:56]}  Qe5 {[%clk 0:01:37]} 27. Bd4 {[%clk 0:00:51]}  Qe7 {[%clk 0:01:37]} 28. e5 {[%clk 0:00:34]}  Nf8 {[%clk 0:01:16]} 29. Bc5 {[%clk 0:00:32]}  Qxe5 {[%clk 0:01:14]} 30. Qxe5 {[%clk 0:00:29]}  Bxe5 {[%clk 0:01:15]} 31. f4 {[%clk 0:00:24]}  Bc7 {[%clk 0:01:14]} 32. Bxf7 {[%clk 0:00:21]}  Kg7 {[%clk 0:01:14]} 33. Bc4 {[%clk 0:00:16]}  Nd7 {[%clk 0:01:09]} 34. Bd4+ {[%clk 0:00:16]}  Kf8 {[%clk 0:01:09]} 35. Kf2 {[%clk 0:00:15]}  Nb6 {[%clk 0:01:07]} 36. Bxb6 {[%clk 0:00:11]}  Bxb6+ {[%clk 0:01:08]} 37. Kf3 {[%clk 0:00:12]}  Ke7 {[%clk 0:01:07]} 38. g4 {[%clk 0:00:12]}  Bxg4+ {[%clk 0:01:07]} 39. hxg4 {[%clk 0:00:08]}  Rxa8 {[%clk 0:01:08]} 40. Ng3 {[%clk 0:00:05]}  Ra3+ {[%clk 0:01:08]} 41. Kg2 {[%clk 0:00:06]}  Bc7 {[%clk 0:01:09]} 0-1


[Site "https://www.chess.com"]

[Event "Titled Tuesday Blitz January 25 2022"]
[White "Tikhonov, Viacheslav"]
[Black "Costachi, Mihnea"]
[WhiteFideId "44196407"]
[BlackFideId "1217518"]
[WhiteElo "1773"]
[BlackElo "2464"]
[Result "1-0"]
[Round "06"]
[TimeControl "180+1"]
[Date "2022.01.26"]
[WhiteClock "0:00:15"]
[BlackClock "0:00:21"]

1. d4 {[%clk 0:03:00]}  Nf6 {[%clk 0:02:59]} 2. Bf4 {[%clk 0:02:57]}  c5 {[%clk 0:02:58]} 3. e3 {[%clk 0:02:57]}  Qb6 {[%clk 0:02:57]} 4. Nc3 {[%clk 0:02:57]}  cxd4 {[%clk 0:02:53]} 5. exd4 {[%clk 0:02:56]}  a6 {[%clk 0:02:53]} 6. a3 {[%clk 0:02:56]}  d6 {[%clk 0:02:51]} 7. Nf3 {[%clk 0:02:55]}  g6 {[%clk 0:02:50]} 8. Be2 {[%clk 0:02:54]}  Bg7 {[%clk 0:02:51]} 9. O-O {[%clk 0:02:54]}  O-O {[%clk 0:02:51]} 10. h3 {[%clk 0:02:44]}  Bf5 {[%clk 0:02:51]} 11. Bd3 {[%clk 0:02:41]}  Bd7 {[%clk 0:02:45]} 12. Re1 {[%clk 0:02:40]}  Re8 {[%clk 0:02:44]} 13. Qd2 {[%clk 0:02:20]}  Nc6 {[%clk 0:02:43]} 14. Bf1 {[%clk 0:02:02]}  Rac8 {[%clk 0:02:39]} 15. Na4 {[%clk 0:01:58]}  Qc7 {[%clk 0:02:33]} 16. b3 {[%clk 0:01:53]}  b5 {[%clk 0:02:30]} 17. Nb2 {[%clk 0:01:53]}  Qb6 {[%clk 0:02:31]} 18. a4 {[%clk 0:01:51]}  Bf5 {[%clk 0:02:22]} 19. axb5 {[%clk 0:01:47]}  axb5 {[%clk 0:02:23]} 20. Be3 {[%clk 0:01:40]}  Nd5 {[%clk 0:02:12]} 21. c3 {[%clk 0:01:32]}  Ra8 {[%clk 0:02:04]} 22. Bd3 {[%clk 0:01:30]}  Bd7 {[%clk 0:02:01]} 23. b4 {[%clk 0:01:27]}  Nxe3 {[%clk 0:01:56]} 24. Qxe3 {[%clk 0:01:21]}  Rxa1 {[%clk 0:01:51]} 25. Rxa1 {[%clk 0:01:20]}  d5 {[%clk 0:01:46]} 26. Qe2 {[%clk 0:01:18]}  Rb8 {[%clk 0:01:43]} 27. Nd1 {[%clk 0:01:14]}  e6 {[%clk 0:01:41]} 28. Nd2 {[%clk 0:00:56]}  Ne7 {[%clk 0:01:36]} 29. Nb3 {[%clk 0:00:55]}  Bc6 {[%clk 0:01:34]} 30. Nc5 {[%clk 0:00:49]}  Qd8 {[%clk 0:01:29]} 31. Ra6 {[%clk 0:00:44]}  Be8 {[%clk 0:01:18]} 32. Ne3 {[%clk 0:00:40]}  Nc8 {[%clk 0:01:00]} 33. Ng4 {[%clk 0:00:35]}  Nd6 {[%clk 0:01:00]} 34. Ne5 {[%clk 0:00:32]}  Bxe5 {[%clk 0:00:58]} 35. Qxe5 {[%clk 0:00:32]}  Nb7 {[%clk 0:00:51]} 36. g3 {[%clk 0:00:20]}  Nxc5 {[%clk 0:00:51]} 37. dxc5 {[%clk 0:00:19]}  Ra8 {[%clk 0:00:45]} 38. Rb6 {[%clk 0:00:18]}  Ra1+ {[%clk 0:00:42]} 39. Kg2 {[%clk 0:00:18]}  Rd1 {[%clk 0:00:36]} 40. Rb8 {[%clk 0:00:18]}  f6 {[%clk 0:00:24]} 41. Qxe6+ {[%clk 0:00:15]}  Kg7 {[%clk 0:00:21]} 42. Rxd8 {[%clk 0:00:15]} 1-0


[Site "https://www.chess.com"]

[Event "Titled Tuesday Blitz January 25 2022"]
[White "Vakhlamov, Igor L."]
[Black "Willow, Jonah B"]
[WhiteFideId "24126748"]
[BlackFideId "438804"]
[WhiteElo "2401"]
[BlackElo "2261"]
[Result "1/2-1/2"]
[Round "06"]
[TimeControl "180+1"]
[Date "2022.01.26"]
[WhiteClock "0:00:40"]
[BlackClock "0:01:30"]

1. e4 {[%clk 0:03:00]}  c5 {[%clk 0:03:00]} 2. Nf3 {[%clk 0:03:01]}  Nc6 {[%clk 0:03:00]} 3. Nc3 {[%clk 0:03:01]}  g6 {[%clk 0:02:59]} 4. d4 {[%clk 0:03:01]}  cxd4 {[%clk 0:03:00]} 5. Nxd4 {[%clk 0:03:02]}  Bg7 {[%clk 0:03:01]} 6. Be3 {[%clk 0:03:03]}  Nf6 {[%clk 0:03:01]} 7. Bc4 {[%clk 0:03:03]}  O-O {[%clk 0:03:02]} 8. Bb3 {[%clk 0:03:03]}  d6 {[%clk 0:03:02]} 9. h3 {[%clk 0:03:03]}  Bd7 {[%clk 0:03:00]} 10. O-O {[%clk 0:03:03]}  Nxd4 {[%clk 0:03:01]} 11. Bxd4 {[%clk 0:03:04]}  Bc6 {[%clk 0:03:02]} 12. Qd3 {[%clk 0:02:58]}  Qa5 {[%clk 0:03:00]} 13. Rad1 {[%clk 0:02:55]}  Rac8 {[%clk 0:02:59]} 14. Rfe1 {[%clk 0:02:55]}  b5 {[%clk 0:02:58]} 15. Nd5 {[%clk 0:02:50]}  Bxd5 {[%clk 0:02:52]} 16. exd5 {[%clk 0:02:48]}  Rfe8 {[%clk 0:02:52]} 17. Re3 {[%clk 0:02:32]}  b4 {[%clk 0:02:44]} 18. c4 {[%clk 0:01:56]}  Nd7 {[%clk 0:02:29]} 19. Bxg7 {[%clk 0:01:55]}  Kxg7 {[%clk 0:02:30]} 20. Qd4+ {[%clk 0:01:54]}  Kg8 {[%clk 0:02:19]} 21. Rde1 {[%clk 0:01:54]}  Qc5 {[%clk 0:02:04]} 22. Qxc5 {[%clk 0:01:50]}  Nxc5 {[%clk 0:02:05]} 23. Rxe7 {[%clk 0:01:51]}  Kf8 {[%clk 0:02:05]} 24. Rxe8+ {[%clk 0:01:48]}  Rxe8 {[%clk 0:02:06]} 25. Rxe8+ {[%clk 0:01:48]}  Kxe8 {[%clk 0:02:07]} 26. Bc2 {[%clk 0:01:46]}  Ke7 {[%clk 0:02:00]} 27. f4 {[%clk 0:01:45]}  a5 {[%clk 0:01:48]} 28. Kf2 {[%clk 0:01:33]}  a4 {[%clk 0:01:46]} 29. Ke3 {[%clk 0:01:33]}  f5 {[%clk 0:01:45]} 30. Kd4 {[%clk 0:01:26]}  Kf6 {[%clk 0:01:45]} 31. g3 {[%clk 0:01:23]}  h6 {[%clk 0:01:44]} 32. Ke3 {[%clk 0:01:20]}  Ke7 {[%clk 0:01:43]} 33. Kd4 {[%clk 0:01:15]}  Kf6 {[%clk 0:01:43]} 34. a3 {[%clk 0:01:01]}  b3 {[%clk 0:01:42]} 35. Bb1 {[%clk 0:00:59]}  h5 {[%clk 0:01:34]} 36. Ke3 {[%clk 0:00:51]}  Ke7 {[%clk 0:01:31]} 37. Kd4 {[%clk 0:00:51]}  Kf6 {[%clk 0:01:31]} 38. Ke3 {[%clk 0:00:51]}  Ke7 {[%clk 0:01:31]} 39. Kf3 {[%clk 0:00:48]}  Kf6 {[%clk 0:01:30]} 40. Ke3 {[%clk 0:00:40]} 1/2-1/2


[Site "https://www.chess.com"]